[Event "*** Titled Tuesday Blitz"]
[Site "Chess.com"]
[Date "2018.01.02"]
[Round "3"]
[White "krzyzan94"]
[Black "BillieKimbah"]
[Result "0-1"]
[WhiteElo "2606"]
[BlackElo "2723"]
[TimeControl "180+2"]
[EndTime "13:41:30 PST"]
[Termination "BillieKimbah won by resignation"]

1. e4 {[%clk 0:03:01.9]} 1... e5 {[%clk 0:02:59.9]} 2. Nf3 {[%clk 0:03:02.7]}
2... Nc6 {[%clk 0:03:01.1]} 3. d4 {[%clk 0:03:03.3]} 3... exd4 {[%clk 0:03:01]}
4. Nxd4 {[%clk 0:03:05.2]} 4... Nf6 {[%clk 0:03:01.1]} 5. Nxc6 {[%clk
0:03:05.3]} 5... bxc6 {[%clk 0:03:01.8]} 6. e5 {[%clk 0:03:06.5]} 6... Qe7
{[%clk 0:03:01.8]} 7. Qe2 {[%clk 0:03:07.4]} 7... Nd5 {[%clk 0:03:02.7]} 8. c4
{[%clk 0:03:08.6]} 8... Ba6 {[%clk 0:03:03.6]} 9. Nd2 {[%clk 0:03:09.4]} 9... g6
{[%clk 0:02:59.7]} 10. Nf3 {[%clk 0:03:10.4]} 10... Bg7 {[%clk 0:02:45.9]} 11.
Bg5 {[%clk 0:02:59.9]} 11... Qb4+ {[%clk 0:02:46.2]} 12. Qd2 {[%clk 0:02:56.1]}
12... Qxd2+ {[%clk 0:02:46.3]} 13. Bxd2 {[%clk 0:02:56.1]} 13... Ne7 {[%clk
0:02:38.3]} 14. O-O-O {[%clk 0:02:56.3]} 14... O-O-O {[%clk 0:02:29.9]} 15. Bc3
{[%clk 0:02:50.7]} 15... d5 {[%clk 0:02:00.8]} 16. exd6 {[%clk 0:02:14.5]} 16...
Bxc3 {[%clk 0:02:00.6]} 17. bxc3 {[%clk 0:01:39.2]} 17... Rxd6 {[%clk
0:01:59.7]} 18. Rxd6 {[%clk 0:01:36.5]} 18... cxd6 {[%clk 0:02:01.6]} 19. Bd3
{[%clk 0:01:38.1]} 19... h6 {[%clk 0:01:53.6]} 20. Re1 {[%clk 0:01:38.9]} 20...
Kd7 {[%clk 0:01:54.1]} 21. Kc2 {[%clk 0:01:39.5]} 21... c5 {[%clk 0:01:53.1]}
22. h4 {[%clk 0:01:34.2]} 22... f5 {[%clk 0:01:44.8]} 23. Ng1 {[%clk 0:01:18.4]}
23... g5 {[%clk 0:01:25.7]} 24. Nh3 {[%clk 0:01:11.4]} 24... Rg8 {[%clk
0:01:24.6]} 25. hxg5 {[%clk 0:01:11.3]} 25... hxg5 {[%clk 0:01:25.3]} 26. g3
{[%clk 0:01:12.2]} 26... Bb7 {[%clk 0:01:24.4]} 27. f4 {[%clk 0:01:04.9]} 27...
gxf4 {[%clk 0:01:24.3]} 28. gxf4 {[%clk 0:01:06.8]} 28... Rg4 {[%clk 0:01:13.4]}
29. Rg1 {[%clk 0:00:48.4]} 29... Ke6 {[%clk 0:00:30.5]} 30. Be2 {[%clk
0:00:18.6]} 30... Rxg1 {[%clk 0:00:30.6]} 31. Nxg1 {[%clk 0:00:20.5]} 31... Ng6
{[%clk 0:00:31.1]} 32. Nh3 {[%clk 0:00:21.2]} 32... Bg2 {[%clk 0:00:32.4]} 33.
Bh5 {[%clk 0:00:22.8]} 33... Kf6 {[%clk 0:00:31.6]} 34. Bxg6 {[%clk 0:00:23.7]}
34... Kxg6 {[%clk 0:00:33.5]} 35. Nf2 {[%clk 0:00:23.7]} 35... Kh5 {[%clk
0:00:32.5]} 36. Kd2 {[%clk 0:00:24.8]} 36... Kh4 {[%clk 0:00:33.5]} 37. Ke3
{[%clk 0:00:25.9]} 37... Kg3 {[%clk 0:00:34.8]} 38. Nd1 {[%clk 0:00:25.8]} 38...
Bf1 {[%clk 0:00:30.9]} 39. Nb2 {[%clk 0:00:26.7]} 39... a6 {[%clk 0:00:31]} 40.
a3 {[%clk 0:00:27.1]} 40... a5 {[%clk 0:00:31.4]} 41. Na4 {[%clk 0:00:28]} 41...
Bxc4 {[%clk 0:00:31]} 42. Nb6 {[%clk 0:00:29.9]} 42... Be6 {[%clk 0:00:31.6]}
43. Na8 {[%clk 0:00:31.4]} 43... d5 {[%clk 0:00:22.7]} 44. Nc7 {[%clk
0:00:31.7]} 44... Bf7 {[%clk 0:00:23.5]} 45. Na6 {[%clk 0:00:27.3]} 45... d4+
{[%clk 0:00:22.9]} 46. cxd4 {[%clk 0:00:28.9]} 46... cxd4+ {[%clk 0:00:24.1]}
47. Kxd4 {[%clk 0:00:30.8]} 47... Kxf4 {[%clk 0:00:25.7]} 48. Nc5 {[%clk
0:00:31.1]} 48... Kg3 {[%clk 0:00:21.7]} 49. Nd3 {[%clk 0:00:16.9]} 49... f4
{[%clk 0:00:22.7]} 50. Ne5 {[%clk 0:00:17.2]} 50... Bb3 {[%clk 0:00:19]} 51. a4
{[%clk 0:00:14.7]} 51... Bxa4 {[%clk 0:00:19]} 52. Kc5 {[%clk 0:00:12.2]} 52...
Bb3 {[%clk 0:00:19.3]} 53. Kb5 {[%clk 0:00:13.4]} 53... a4 {[%clk 0:00:20.9]}
54. Kb4 {[%clk 0:00:15.3]} 54... Bc2 {[%clk 0:00:21.2]} 55. Kc3 {[%clk 0:00:16]}
55... Bb3 {[%clk 0:00:22.4]} 56. Kb4 {[%clk 0:00:17.4]} 56... Bd1 {[%clk
0:00:23.7]} 57. Kc3 {[%clk 0:00:18.6]} 57... Kh3 {[%clk 0:00:21.1]} 58. Kb2
{[%clk 0:00:18]} 58... Bh5 {[%clk 0:00:18.6]} 59. Kc3 {[%clk 0:00:17.2]} 59...
Kh4 {[%clk 0:00:18.1]} 60. Kb4 {[%clk 0:00:16.6]} 60... Be8 {[%clk 0:00:18.8]}
61. Nf3+ {[%clk 0:00:14.1]} 61... Kg4 {[%clk 0:00:18.1]} 62. Nd4 {[%clk
0:00:14]} 62... Bd7 {[%clk 0:00:16.5]} 63. Ka3 {[%clk 0:00:14.6]} 63... Kg5
{[%clk 0:00:13.1]} 64. Kb4 {[%clk 0:00:14.6]} 64... Kf6 {[%clk 0:00:14.2]} 65.
Kc3 {[%clk 0:00:15.8]} 65... Ke5 {[%clk 0:00:14.6]} 66. Nf3+ {[%clk 0:00:17.1]}
66... Ke4 {[%clk 0:00:13.6]} 67. Ng5+ {[%clk 0:00:17.9]} 67... Ke3 {[%clk
0:00:13.8]} 68. Kb4 {[%clk 0:00:18.2]} 68... Kd4 {[%clk 0:00:11.8]} 69. Ka3
{[%clk 0:00:18.7]} 69... Ke5 {[%clk 0:00:12.2]} 70. Kb4 {[%clk 0:00:18.7]} 70...
Bc6 {[%clk 0:00:12.5]} 71. Kc3 {[%clk 0:00:14.3]} 71... Kf5 {[%clk 0:00:13.4]}
72. Nh3 {[%clk 0:00:15.5]} 72... f3 {[%clk 0:00:14.5]} 73. Nf2 {[%clk
0:00:16.8]} 73... Kf4 {[%clk 0:00:14.8]} 74. Nd3+ {[%clk 0:00:18]} 74... Kg3
{[%clk 0:00:14.2]} 75. Kd2 {[%clk 0:00:15.6]} 75... Bb5 {[%clk 0:00:14.2]} 76.
Nc5 {[%clk 0:00:16.3]} 76... a3 {[%clk 0:00:13.3]} 77. Kc3 {[%clk 0:00:16.7]}
77... Kf4 {[%clk 0:00:12.5]} 78. Ne6+ {[%clk 0:00:17.6]} 78... Kg4 {[%clk
0:00:11.5]} 79. Nd4 {[%clk 0:00:14]} 79... f2 {[%clk 0:00:12]} 80. Nc2 {[%clk
0:00:14.8]} 80... a2 {[%clk 0:00:11.2]} 81. Kb2 {[%clk 0:00:12.9]} 81... Kf4
{[%clk 0:00:12.2]} 0-1

[Event "*** Titled Tuesday Blitz"]
[Site "Chess.com"]
[Date "2018.01.02"]
[Round "3"]
[White "Msb2"]
[Black "ST-Sandavagur"]
[Result "1/2-1/2"]
[WhiteElo "2737"]
[BlackElo "2527"]
[TimeControl "180+2"]
[EndTime "13:42:34 PST"]
[Termination "Game drawn - insufficient material"]

1. d4 {[%clk 0:03:01.9]} 1... Nf6 {[%clk 0:02:56.8]} 2. c4 {[%clk 0:03:03]} 2...
e6 {[%clk 0:02:55.5]} 3. g3 {[%clk 0:03:04]} 3... Bb4+ {[%clk 0:02:49.6]} 4. Nd2
{[%clk 0:03:03.7]} 4... O-O {[%clk 0:02:45]} 5. Bg2 {[%clk 0:03:03.3]} 5... d5
{[%clk 0:02:46.1]} 6. Nf3 {[%clk 0:03:04.6]} 6... Nbd7 {[%clk 0:02:41.3]} 7. O-O
{[%clk 0:03:03.8]} 7... Re8 {[%clk 0:02:27.3]} 8. Qc2 {[%clk 0:03:03]} 8... b6
{[%clk 0:02:21.1]} 9. a3 {[%clk 0:02:41.1]} 9... Bd6 {[%clk 0:02:14.7]} 10. b4
{[%clk 0:02:41.8]} 10... c5 {[%clk 0:02:08]} 11. bxc5 {[%clk 0:02:25.3]} 11...
bxc5 {[%clk 0:02:09.9]} 12. cxd5 {[%clk 0:02:21.5]} 12... exd5 {[%clk
0:01:55.1]} 13. dxc5 {[%clk 0:02:22]} 13... Nxc5 {[%clk 0:01:57]} 14. Nd4 {[%clk
0:02:21.5]} 14... Ba6 {[%clk 0:01:52.7]} 15. N2f3 {[%clk 0:02:08.5]} 15... Rc8
{[%clk 0:01:27.5]} 16. Qd1 {[%clk 0:02:08.6]} 16... Nce4 {[%clk 0:01:25.6]} 17.
Bb2 {[%clk 0:01:53.9]} 17... Qa5 {[%clk 0:00:48.6]} 18. Re1 {[%clk 0:01:15]}
18... Nc3 {[%clk 0:00:41.1]} 19. Bxc3 {[%clk 0:01:16.3]} 19... Rxc3 {[%clk
0:00:34.4]} 20. a4 {[%clk 0:01:16.1]} 20... Bb4 {[%clk 0:00:29.4]} 21. Rf1
{[%clk 0:01:15.4]} 21... Rc4 {[%clk 0:00:21.6]} 22. Nb5 {[%clk 0:01:04.7]} 22...
Bxb5 {[%clk 0:00:07.9]} 23. axb5 {[%clk 0:01:06.6]} 23... Qxb5 {[%clk
0:00:09.8]} 24. Rxa7 {[%clk 0:01:07.8]} 24... Bc5 {[%clk 0:00:07.5]} 25. Ra2
{[%clk 0:01:03.7]} 25... Rce4 {[%clk 0:00:06.3]} 26. e3 {[%clk 0:01:02.3]} 26...
Rb4 {[%clk 0:00:04.3]} 27. Rc2 {[%clk 0:01:00]} 27... Bf8 {[%clk 0:00:04.3]} 28.
Nd4 {[%clk 0:01:00.8]} 28... Qa4 {[%clk 0:00:05.6]} 29. Qd3 {[%clk 0:01:01]}
29... Reb8 {[%clk 0:00:05]} 30. Rfc1 {[%clk 0:01:01.6]} 30... Rb1 {[%clk
0:00:05.8]} 31. h3 {[%clk 0:01:02.4]} 31... Rxc1+ {[%clk 0:00:07.7]} 32. Rxc1
{[%clk 0:01:04.3]} 32... Qa3 {[%clk 0:00:06.7]} 33. Qxa3 {[%clk 0:00:50.8]}
33... Bxa3 {[%clk 0:00:08.6]} 34. Rd1 {[%clk 0:00:52.7]} 34... Bf8 {[%clk
0:00:06.5]} 35. Ne2 {[%clk 0:00:52.9]} 35... Rd8 {[%clk 0:00:05.5]} 36. Nf4
{[%clk 0:00:49.6]} 36... Bc5 {[%clk 0:00:02.9]} 37. Bxd5 {[%clk 0:00:38.8]}
37... Nxd5 {[%clk 0:00:02.7]} 38. Rxd5 {[%clk 0:00:40.7]} 38... Rxd5 {[%clk
0:00:03.5]} 39. Nxd5 {[%clk 0:00:42.6]} 39... Kf8 {[%clk 0:00:05]} 40. Kg2
{[%clk 0:00:43.8]} 40... f6 {[%clk 0:00:05.7]} 41. g4 {[%clk 0:00:39.1]} 41...
Kf7 {[%clk 0:00:06.9]} 42. Kf3 {[%clk 0:00:40.3]} 42... Bd6 {[%clk 0:00:05.5]}
43. Ke4 {[%clk 0:00:40.8]} 43... Kg6 {[%clk 0:00:06.1]} 44. f4 {[%clk
0:00:41.5]} 44... h5 {[%clk 0:00:03.6]} 45. Nc3 {[%clk 0:00:34.5]} 45... hxg4
{[%clk 0:00:03.9]} 46. hxg4 {[%clk 0:00:36.4]} 46... Bc5 {[%clk 0:00:05.3]} 47.
Nd1 {[%clk 0:00:32.7]} 47... Kf7 {[%clk 0:00:06.6]} 48. Kd5 {[%clk 0:00:33.4]}
48... Ba7 {[%clk 0:00:06.7]} 49. f5 {[%clk 0:00:33.4]} 49... g6 {[%clk
0:00:07.3]} 50. e4 {[%clk 0:00:30.4]} 50... gxf5 {[%clk 0:00:09.2]} 51. gxf5
{[%clk 0:00:30.8]} 51... Ke7 {[%clk 0:00:09.6]} 52. Nc3 {[%clk 0:00:31.4]} 52...
Bb8 {[%clk 0:00:10.8]} 53. Ne2 {[%clk 0:00:31.3]} 53... Be5 {[%clk 0:00:12.3]}
54. Nd4 {[%clk 0:00:32.9]} 54... Kf7 {[%clk 0:00:13.1]} 55. Nc6 {[%clk
0:00:33.3]} 55... Ba1 {[%clk 0:00:14.4]} 56. Kd6 {[%clk 0:00:34.7]} 56... Bb2
{[%clk 0:00:11.6]} 57. Kd7 {[%clk 0:00:34.5]} 57... Kg7 {[%clk 0:00:07.3]} 58.
Ke6 {[%clk 0:00:35.5]} 58... Kh6 {[%clk 0:00:08.9]} 59. Nb8 {[%clk 0:00:26.2]}
59... Kg5 {[%clk 0:00:09.4]} 60. Nd7 {[%clk 0:00:28.1]} 60... Ba1 {[%clk
0:00:09.7]} 61. Nf8 {[%clk 0:00:29.4]} 61... Kf4 {[%clk 0:00:10.7]} 62. Kd5
{[%clk 0:00:17.6]} 62... Bb2 {[%clk 0:00:11.4]} 63. Nd7 {[%clk 0:00:18.8]} 63...
Ba1 {[%clk 0:00:09.8]} 64. Nc5 {[%clk 0:00:19.4]} 64... Kg5 {[%clk 0:00:07.1]}
65. Ke6 {[%clk 0:00:20]} 65... Kf4 {[%clk 0:00:07.7]} 66. Kd5 {[%clk 0:00:19.8]}
66... Kg5 {[%clk 0:00:09]} 67. Ne6+ {[%clk 0:00:20.5]} 67... Kg4 {[%clk
0:00:09.4]} 68. Ng7 {[%clk 0:00:20]} 68... Kf4 {[%clk 0:00:09.7]} 69. Ne8 {[%clk
0:00:21.4]} 69... Bb2 {[%clk 0:00:10.6]} 70. Nd6 {[%clk 0:00:22]} 70... Ba1
{[%clk 0:00:12.1]} 71. Nc4 {[%clk 0:00:23.7]} 71... Bc3 {[%clk 0:00:12.8]} 72.
Nb6 {[%clk 0:00:24]} 72... Ba1 {[%clk 0:00:13.9]} 73. Nd7 {[%clk 0:00:25.6]}
73... Bb2 {[%clk 0:00:15.1]} 74. Nb8 {[%clk 0:00:26.9]} 74... Bc3 {[%clk
0:00:16.2]} 75. Nc6 {[%clk 0:00:28]} 75... Bb2 {[%clk 0:00:17.3]} 76. Nd8 {[%clk
0:00:29.1]} 76... Bc3 {[%clk 0:00:18.4]} 77. Ne6+ {[%clk 0:00:31]} 77... Kg4
{[%clk 0:00:16.9]} 78. Nf8 {[%clk 0:00:32]} 78... Kf4 {[%clk 0:00:18]} 79. Ng6+
{[%clk 0:00:33.4]} 79... Kg5 {[%clk 0:00:19.6]} 80. Ke6 {[%clk 0:00:34.6]} 80...
Ba1 {[%clk 0:00:19.3]} 81. e5 {[%clk 0:00:35]} 81... fxe5 {[%clk 0:00:20.1]} 82.
f6 {[%clk 0:00:36.5]} 82... e4 {[%clk 0:00:16.6]} 83. f7 {[%clk 0:00:29.7]}
83... Bg7 {[%clk 0:00:17]} 84. Ne5 {[%clk 0:00:19.3]} 84... e3 {[%clk
0:00:17.7]} 85. Nd3 {[%clk 0:00:20.5]} 85... Kg4 {[%clk 0:00:18.1]} 86. Kd5
{[%clk 0:00:21.4]} 86... Kf3 {[%clk 0:00:18.7]} 87. Ne5+ {[%clk 0:00:21.4]}
87... Kg2 {[%clk 0:00:17.9]} 88. Nd3 {[%clk 0:00:21.2]} 88... e2 {[%clk
0:00:17.9]} 89. Ke4 {[%clk 0:00:22.3]} 89... Kf1 {[%clk 0:00:18.8]} 90. Kf3
{[%clk 0:00:23.4]} 90... e1=Q {[%clk 0:00:20.2]} 91. Nxe1 {[%clk 0:00:24.8]}
91... Kxe1 {[%clk 0:00:22.1]} 92. Kf4 {[%clk 0:00:26.4]} 92... Bf8 {[%clk
0:00:23.7]} 93. Kf5 {[%clk 0:00:28.3]} 93... Kd2 {[%clk 0:00:25.4]} 94. Kg6
{[%clk 0:00:30.2]} 94... Ke3 {[%clk 0:00:26.9]} 95. Kh7 {[%clk 0:00:32.1]} 95...
Ke4 {[%clk 0:00:28.3]} 96. Kg8 {[%clk 0:00:34]} 96... Bb4 {[%clk 0:00:29.6]} 97.
Kg7 {[%clk 0:00:35.9]} 97... Ke5 {[%clk 0:00:30.9]} 98. Kg8 {[%clk 0:00:37.8]}
98... Ke6 {[%clk 0:00:32.5]} 99. Kg7 {[%clk 0:00:39.7]} 99... Kf5 {[%clk
0:00:33.6]} 100. Kg8 {[%clk 0:00:40.6]} 100... Kf6 {[%clk 0:00:35.2]} 101. f8=Q+
{[%clk 0:00:42]} 101... Bxf8 {[%clk 0:00:36.3]} 1/2-1/2

[Event "*** Titled Tuesday Blitz"]
[Site "Chess.com"]
[Date "2018.01.02"]
[Round "3"]
[White "RobertoJBM"]
[Black "Robert_Chessmood"]
[Result "0-1"]
[WhiteElo "2554"]
[BlackElo "2732"]
[TimeControl "180+2"]
[EndTime "13:43:46 PST"]
[Termination "Robert_Chessmood won on time"]

1. d4 {[%clk 0:03:01.9]} 1... d5 {[%clk 0:02:59.5]} 2. c4 {[%clk 0:03:00]} 2...
c6 {[%clk 0:03:00.9]} 3. Nf3 {[%clk 0:03:00.6]} 3... Nf6 {[%clk 0:03:01.7]} 4.
Nc3 {[%clk 0:02:56.9]} 4... e6 {[%clk 0:03:00.8]} 5. Bg5 {[%clk 0:02:57]} 5...
h6 {[%clk 0:03:00.2]} 6. Bxf6 {[%clk 0:02:56.9]} 6... Qxf6 {[%clk 0:03:02.1]} 7.
e3 {[%clk 0:02:58.4]} 7... g6 {[%clk 0:03:00.2]} 8. Be2 {[%clk 0:02:59.2]} 8...
Bg7 {[%clk 0:02:55.6]} 9. O-O {[%clk 0:03:00.2]} 9... O-O {[%clk 0:02:55]} 10.
Qc2 {[%clk 0:03:00.9]} 10... dxc4 {[%clk 0:02:52.3]} 11. Bxc4 {[%clk 0:03:01.6]}
11... Qd8 {[%clk 0:02:42.1]} 12. b4 {[%clk 0:03:01.9]} 12... Nd7 {[%clk
0:02:41]} 13. Rad1 {[%clk 0:02:59.1]} 13... b6 {[%clk 0:02:35.7]} 14. b5 {[%clk
0:02:59.2]} 14... cxb5 {[%clk 0:02:24.5]} 15. Bxb5 {[%clk 0:02:55.9]} 15... Bb7
{[%clk 0:02:24]} 16. Qe2 {[%clk 0:02:56.9]} 16... Rc8 {[%clk 0:02:20.4]} 17. Nb1
{[%clk 0:02:54]} 17... Qe7 {[%clk 0:02:16.5]} 18. Ba6 {[%clk 0:02:53.2]} 18...
Nf6 {[%clk 0:02:12.8]} 19. Ne5 {[%clk 0:02:51.2]} 19... Rfd8 {[%clk 0:02:10.3]}
20. Bxb7 {[%clk 0:02:42.2]} 20... Qxb7 {[%clk 0:02:10.4]} 21. Rc1 {[%clk
0:02:43.1]} 21... Ne4 {[%clk 0:01:43.2]} 22. Nd3 {[%clk 0:02:42.6]} 22... Rxc1
{[%clk 0:01:35.7]} 23. Rxc1 {[%clk 0:02:42.8]} 23... Rc8 {[%clk 0:01:37]} 24.
Rc2 {[%clk 0:02:39.8]} 24... a5 {[%clk 0:01:24.8]} 25. f3 {[%clk 0:02:25.8]}
25... Nd6 {[%clk 0:01:23.4]} 26. Nc3 {[%clk 0:02:15.6]} 26... Nf5 {[%clk
0:01:12.2]} 27. Nd1 {[%clk 0:01:57.6]} 27... Rc7 {[%clk 0:00:54]} 28. Ne1 {[%clk
0:01:42.2]} 28... h5 {[%clk 0:00:37.7]} 29. Qd3 {[%clk 0:01:36.8]} 29... Bf6
{[%clk 0:00:31.4]} 30. g3 {[%clk 0:01:22.2]} 30... Rxc2 {[%clk 0:00:29.1]} 31.
Qxc2 {[%clk 0:01:22.7]} 31... b5 {[%clk 0:00:23.7]} 32. Kf2 {[%clk 0:01:16.9]}
32... b4 {[%clk 0:00:22.3]} 33. Nd3 {[%clk 0:01:16]} 33... Kg7 {[%clk
0:00:17.8]} 34. Nc5 {[%clk 0:01:14.1]} 34... Qb5 {[%clk 0:00:14.8]} 35. Qe2
{[%clk 0:01:12]} 35... Nxd4 {[%clk 0:00:13.6]} 36. Qxb5 {[%clk 0:01:06.1]} 36...
Nxb5 {[%clk 0:00:15.5]} 37. Ke2 {[%clk 0:01:06.7]} 37... Bd8 {[%clk 0:00:09.9]}
38. Kd3 {[%clk 0:01:05.2]} 38... Nd6 {[%clk 0:00:10.2]} 39. Nb2 {[%clk 0:01:05]}
39... Bb6 {[%clk 0:00:10.4]} 40. Nca4 {[%clk 0:01:05.6]} 40... Ba7 {[%clk
0:00:10.4]} 41. e4 {[%clk 0:01:06.4]} 41... g5 {[%clk 0:00:09.3]} 42. e5 {[%clk
0:01:04.7]} 42... Nb5 {[%clk 0:00:09.5]} 43. Nc4 {[%clk 0:01:05.7]} 43... Bg1
{[%clk 0:00:09.5]} 44. h3 {[%clk 0:01:06]} 44... Bh2 {[%clk 0:00:10.7]} 45. g4
{[%clk 0:01:06]} 45... hxg4 {[%clk 0:00:12.6]} 46. hxg4 {[%clk 0:01:07]} 46...
Na3 {[%clk 0:00:13.8]} 47. Nxa3 {[%clk 0:01:06.3]} 47... bxa3 {[%clk 0:00:15.7]}
48. Ke4 {[%clk 0:01:06.9]} 48... Bg1 {[%clk 0:00:15.6]} 49. Nc3 {[%clk
0:01:07.7]} 49... Bc5 {[%clk 0:00:16.4]} 50. Nb5 {[%clk 0:01:08.6]} 50... Bb4
{[%clk 0:00:16.9]} 51. Nd4 {[%clk 0:01:09]} 51... Kf8 {[%clk 0:00:17.1]} 52. Nc6
{[%clk 0:00:59.9]} 52... Ke8 {[%clk 0:00:17.5]} 53. Kd4 {[%clk 0:01:01.4]} 53...
Be1 {[%clk 0:00:16.2]} 54. Kc4 {[%clk 0:00:56.4]} 54... Kd7 {[%clk 0:00:15.7]}
55. Kb5 {[%clk 0:00:57.5]} 55... Bc3 {[%clk 0:00:12.8]} 56. Kc5 {[%clk
0:00:57.7]} 56... Kc7 {[%clk 0:00:13]} 57. Kb5 {[%clk 0:00:58.7]} 57... Bb2
{[%clk 0:00:10.4]} 58. Kc5 {[%clk 0:00:55.7]} 58... Ba1 {[%clk 0:00:10.5]} 59.
Kb5 {[%clk 0:00:53.5]} 59... Bc3 {[%clk 0:00:11.3]} 60. Kc5 {[%clk 0:00:54.3]}
60... Bd2 {[%clk 0:00:12.3]} 61. Kb5 {[%clk 0:00:54.6]} 61... Be1 {[%clk
0:00:12.6]} 62. Kc5 {[%clk 0:00:39.2]} 62... Bf2+ {[%clk 0:00:12.9]} 63. Kb5
{[%clk 0:00:40.2]} 63... a4 {[%clk 0:00:11.9]} 64. Na5 {[%clk 0:00:40]} 64...
Bd4 {[%clk 0:00:10.7]} 65. Nc4 {[%clk 0:00:40.9]} 65... Bb2 {[%clk 0:00:11.8]}
66. Kc5 {[%clk 0:00:39.3]} 66... Kd7 {[%clk 0:00:09.7]} 67. Nd6 {[%clk
0:00:37.7]} 67... Ke7 {[%clk 0:00:09.1]} 68. Ne4 {[%clk 0:00:37.2]} 68... Bc1
{[%clk 0:00:08.3]} 69. Nc3 {[%clk 0:00:35.5]} 69... Bb2 {[%clk 0:00:08.5]} 70.
Ne4 {[%clk 0:00:36.6]} 70... Bc1 {[%clk 0:00:09.8]} 71. Kc6 {[%clk 0:00:36.9]}
71... Bf4 {[%clk 0:00:09.5]} 72. Kb5 {[%clk 0:00:37.5]} 72... Kd7 {[%clk
0:00:10.3]} 73. Kc5 {[%clk 0:00:38.2]} 73... Be3+ {[%clk 0:00:08.8]} 74. Kb5
{[%clk 0:00:39.6]} 74... Bf4 {[%clk 0:00:10]} 75. Kc5 {[%clk 0:00:39.9]} 75...
Kc7 {[%clk 0:00:10.3]} 76. Nd6 {[%clk 0:00:38.9]} 76... Bxe5 {[%clk 0:00:09.7]}
77. Nxf7 {[%clk 0:00:39.8]} 77... Bf4 {[%clk 0:00:11.2]} 78. Nh8 {[%clk
0:00:37.9]} 78... Kd7 {[%clk 0:00:11.3]} 79. Ng6 {[%clk 0:00:38.2]} 79... Bg3
{[%clk 0:00:12.6]} 80. Kd4 {[%clk 0:00:19.6]} 80... Kd6 {[%clk 0:00:12.5]} 81.
Ke4 {[%clk 0:00:21.2]} 81... Kc5 {[%clk 0:00:11.6]} 82. Kd3 {[%clk 0:00:22.1]}
82... Kd5 {[%clk 0:00:11.3]} 83. Ne7+ {[%clk 0:00:22.9]} 83... Kd6 {[%clk
0:00:11.5]} 84. Ng6 {[%clk 0:00:23.5]} 84... Bh2 {[%clk 0:00:11.5]} 85. Kd4
{[%clk 0:00:24.1]} 85... Bg1+ {[%clk 0:00:12.2]} 86. Kd3 {[%clk 0:00:25.1]}
86... Bh2 {[%clk 0:00:11.4]} 87. Kd4 {[%clk 0:00:26.2]} 87... Bg3 {[%clk
0:00:12.8]} 88. Ke4 {[%clk 0:00:25.3]} 88... Kc5 {[%clk 0:00:12.5]} 89. f4
{[%clk 0:00:24.8]} 89... gxf4 {[%clk 0:00:12]} 90. Nxf4 {[%clk 0:00:26.7]} 90...
e5 {[%clk 0:00:06.2]} 91. Ne2 {[%clk 0:00:26.2]} 91... Bh4 {[%clk 0:00:06.1]}
92. Kxe5 {[%clk 0:00:26.3]} 92... Kc4 {[%clk 0:00:07.6]} 93. Ke4 {[%clk
0:00:27.9]} 93... Bg5 {[%clk 0:00:08.2]} 94. Kf5 {[%clk 0:00:23.8]} 94... Bd2
{[%clk 0:00:07.7]} 95. Ke4 {[%clk 0:00:21.7]} 95... Bh6 {[%clk 0:00:08]} 96. Nd4
{[%clk 0:00:19.2]} 96... Kc3 {[%clk 0:00:08.9]} 97. Nc6 {[%clk 0:00:18.5]} 97...
Bg5 {[%clk 0:00:08.1]} 98. Kf5 {[%clk 0:00:17.6]} 98... Kb2 {[%clk 0:00:06]} 99.
Kxg5 {[%clk 0:00:15.1]} 99... Kxa2 {[%clk 0:00:07.3]} 100. Kh6 {[%clk
0:00:13.9]} 100... Kb3 {[%clk 0:00:07.2]} 101. Nd4+ {[%clk 0:00:14]} 101... Kb2
{[%clk 0:00:07]} 102. g5 {[%clk 0:00:12.8]} 102... a2 {[%clk 0:00:08.4]} 103. g6
{[%clk 0:00:14.4]} 103... a1=Q {[%clk 0:00:09.9]} 104. g7 {[%clk 0:00:14.9]}
104... Qh1+ {[%clk 0:00:11.3]} 105. Kg6 {[%clk 0:00:15.2]} 105... Qg1+ {[%clk
0:00:12.6]} 106. Kf5 {[%clk 0:00:15]} 106... Qf2+ {[%clk 0:00:12.2]} 107. Ke6
{[%clk 0:00:12.8]} 107... Qe3+ {[%clk 0:00:12.8]} 108. Kd5 {[%clk 0:00:12.7]}
108... Qg5+ {[%clk 0:00:11.6]} 0-1

[Event "*** Titled Tuesday Blitz"]
[Site "Chess.com"]
[Date "2018.01.02"]
[Round "4"]
[White "jup1978"]
[Black "tteshan"]
[Result "0-1"]
[WhiteElo "2179"]
[BlackElo "2028"]
[TimeControl "180+2"]
[EndTime "13:46:34 PST"]
[Termination "tteshan won by resignation"]

1. Nf3 {[%clk 0:03:01.9]} 1... c5 {[%clk 0:02:59.8]} 2. e3 {[%clk 0:03:03.8]}
2... d5 {[%clk 0:03:00.4]} 3. d4 {[%clk 0:03:05.1]} 3... cxd4 {[%clk 0:02:56.5]}
4. exd4 {[%clk 0:03:05.2]} 4... Bg4 {[%clk 0:02:56.2]} 5. Nbd2 {[%clk
0:03:04.5]} 5... Nc6 {[%clk 0:02:55.9]} 6. c3 {[%clk 0:03:05.5]} 6... e6 {[%clk
0:02:56.2]} 7. h3 {[%clk 0:03:07]} 7... Bh5 {[%clk 0:02:56.7]} 8. Qa4 {[%clk
0:03:06.4]} 8... Bd6 {[%clk 0:02:49.1]} 9. Bb5 {[%clk 0:03:07.2]} 9... Qc7
{[%clk 0:02:49.1]} 10. O-O {[%clk 0:03:04]} 10... Nf6 {[%clk 0:02:48.4]} 11. Ne5
{[%clk 0:03:04]} 11... Bxe5 {[%clk 0:02:47.5]} 12. dxe5 {[%clk 0:03:04.2]} 12...
Nd7 {[%clk 0:02:48.7]} 13. f4 {[%clk 0:03:03.1]} 13... Bg6 {[%clk 0:02:41.9]}
14. Nf3 {[%clk 0:03:03.1]} 14... O-O {[%clk 0:02:38.3]} 15. Be3 {[%clk
0:03:03.9]} 15... a6 {[%clk 0:02:38.3]} 16. Be2 {[%clk 0:03:03.7]} 16... Rac8
{[%clk 0:02:30.4]} 17. Rac1 {[%clk 0:02:59.6]} 17... b5 {[%clk 0:02:23.5]} 18.
Qxa6 {[%clk 0:02:58.6]} 18... Ra8 {[%clk 0:02:19.6]} 19. Qxb5 {[%clk 0:02:59.6]}
19... Rfb8 {[%clk 0:02:18.3]} 0-1